fUST/lending_fUST_20250912
["ID","MTS","AMOUNT","RATE_DAILY","PERIOD"]
[384904800,1757623859839,-281885.60037083,0.0002,2]
[384904801,1757623859848,-1731.0,0.0002,7]
[384904802,1757623859857,-417.15472785,0.0002,7]
[384904803,1757623859867,-7360.93458769,0.00020008,2]
[384904804,1757623859876,-635.16,0.00020025,2]
[384904805,1757623859886,-1459.69228031,0.00020025,2]
[384904806,1757623859895,-1066.19,0.00020025,2]
[384904807,1757623859905,-1378.61352687,0.00020025,2]
[384904808,1757623859914,-917.43265917,0.00020025,2]
[384904809,1757623859924,-1230.84,0.00020025,2]
[384904810,1757623859933,-929.16284304,0.00020025,2]
[384904811,1757623859943,-845.33874458,0.00020025,2]
[384904812,1757623859952,-1302.19687732,0.00020025,2]
[384904813,1757623859961,-1167.23,0.00020026,2]
[384904814,1757623859971,-4529.02284681,0.00020026,2]
[384904815,1757623859980,-576.74,0.00020026,2]
[384904816,1757623859990,-1295.12385558,0.00020026,2]
[384904817,1757623860000,-1562.5508547,0.00020026,2]
[384904818,1757623860010,-13912.1975064,0.00020026,2]
[384904819,1757623860020,-1152.0,0.00020028,2]
[384904820,1757623860030,-1465.91873266,0.00020053,2]
[384904821,1757623860040,-6500.86216263,0.000201,2]
[384904822,1757623860050,-607.961643,0.00020187,2]
[384904823,1757623860059,-2000.0,0.000202,2]
[384904824,1757623860069,-2000.0,0.000202,2]
[384904825,1757623860078,-1040.9781784,0.000202,2]
[384904826,1757623860088,-154.259126,0.0002028,2]
[384904827,1757623860098,-7872.72526871,0.00020327,2]
[384904828,1757623860107,-1000.0,0.00020371,2]
[384904829,1757623860116,-2000.0,0.00020371,2]
[384904830,1757623860125,-188.4352839,0.00020453,2]
[384904831,1757623860135,-188.4352839,0.00020453,2]
[384904832,1757623860145,-188.4352839,0.00020453,2]
[384904833,1757623860155,-1000.0,0.00020453,5]
[384904834,1757623860164,-1000.0,0.00020498,20]
[384904835,1757623860174,-244.0,0.00020498,20]
[384904836,1757623860184,-1370.2016693,0.00020524,2]
[384904837,1757623860193,-283.419958,0.00020548,2]
[384904838,1757623860203,-161.7241878,0.0002063,2]
[384904839,1757623860212,-584.2322145,0.0002063,2]
[384904840,1757623860222,-295.6812302,0.0002063,2]
[384904841,1757623860231,-161.7241878,0.0002063,2]
[384904842,1757623860240,-584.2322145,0.0002063,2]
[384904843,1757623860250,-295.6812302,0.0002063,2]
[384904844,1757623860259,-584.2322145,0.0002063,2]
[384904845,1757623860268,-161.7241878,0.0002063,2]
[384904846,1757623860278,-295.2667493,0.0002063,2]
[384904847,1757623860287,-161.4747118,0.0002063,2]
[384904848,1757623860296,-584.2322145,0.0002063,2]
[384904849,1757623860305,-168.014981,0.0002063,2]
[384904850,1757623860315,-161.6618188,0.00020685,2]
[384904851,1757623860324,-567.8370699,0.00020685,2]
[384904852,1757623860334,-2300.0,0.00020712,2]
[384904853,1757623860343,-7872.72526871,0.00020755,2]
[384904854,1757623860353,-306.0,0.00020904,2]
[384904855,1757623860362,-1513.29575865,0.00020918,2]
[384904856,1757623860371,-306.0,0.00020959,2]
[384904857,1757623860381,-976.0,0.0002102,2]
[384904858,1757623860390,-634.0,0.0002102,2]
[384904859,1757623860399,-2155.0,0.0002102,2]
[384904860,1757623860409,-409.0,0.0002102,2]
[384904861,1757623860419,-7360.93458769,0.00021052,2]
[384904862,1757623860428,-7872.72526871,0.00021182,2]
[384904863,1757623860437,-2000.0,0.000212,2]
[384904864,1757623860447,-2000.0,0.000212,2]
[384904865,1757623860456,-17896.98574374,0.000213,2]
[384904866,1757623860466,-305.7333179,0.00021332,2]
[384904867,1757623860475,-1320.75359188,0.0002144,2]
[384904868,1757623860485,-300000.0,0.0002144,2]
[384904869,1757623860494,-430.59196184,0.00021473,2]
[384904870,1757623860503,-127443.96915423,0.000215,2]
[384904871,1757623860652,480.0,0.00013727,2]
[384904872,1757623860744,480.0,0.00013725,2]
[384904873,1757623860873,480.0,0.00013723,2]
[384904874,1757623860908,480.0,0.00013723,2]
[384904875,1757623860972,480.0,0.00013725,2]
[384904876,1757623861128,-1377.32648704,0.00013759,2]
[384904877,1757623861146,-3001.68105481,0.00013759,2]
[384904878,1757623861156,-480.0,0.00013898,2]
[384904879,1757623861165,-480.0,0.00013997,2]
[384904880,1757623861174,-480.0,0.00013999,2]
[384904881,1757623861183,-480.0,0.00013999,2]
[384904882,1757623861193,-925.31894519,0.00014271,2]
[384904883,1757623861243,292.97,0.00013725,2]
[384904884,1757623861270,187.03,0.00013725,2]
[384904885,1757623861302,480.0,0.00013723,2]
[384904886,1757623861340,480.0,0.00013727,2]
[384904887,1757623861453,480.0,0.00013725,2]
[384904888,1757623861690,480.0,0.00013725,2]
[384904889,1757623861743,480.0,0.00013727,2]
[384904890,1757623861779,1920.13,0.00012329,2]
[384904891,1757623861835,480.0,0.00013725,2]
[384904892,1757623861883,480.0,0.00013723,2]
[384904893,1757623862030,480.0,0.00013723,2]
[384904894,1757623862083,480.0,0.00013723,2]
[384904895,1757623862096,-480.0,0.00013898,2]
[384904896,1757623862105,-89.999999,0.00013997,2]
[384904897,1757623862116,-390.000001,0.00013997,2]
[384904898,1757623862125,-480.0,0.00013997,2]
[384904899,1757623862135,-480.0,0.00013999,2]
[384904900,1757623862145,-480.0,0.00013999,2]
[384904901,1757623862155,-480.0,0.00013999,2]
[384904902,1757623862164,-480.0,0.00014001,2]
[384904903,1757623862174,-480.0,0.00014001,2]
[384904904,1757623862183,-2075.69105481,0.00014271,2]
[384904905,1757623862192,-480.0,0.00014271,2]
[384904906,1757623862202,-480.0,0.00014271,2]
[384904907,1757623862211,-480.0,0.00014273,2]
[384904908,1757623862220,-480.0,0.00014273,2]
[384904909,1757623862229,-480.0,0.00014273,2]
[384904910,1757623862239,-480.0,0.00014273,2]
[384904911,1757623862248,-480.0,0.00014273,2]
[384904912,1757623862258,-480.0,0.00014275,2]
[384904913,1757623862267,-3001.01,0.00014545,2]
[384904914,1757623862277,-480.0,0.00014545,2]
[384904915,1757623862287,-480.0,0.00014547,2]
[384904916,1757623862296,-480.0,0.00014547,2]
[384904917,1757623862307,-480.0,0.00014547,2]
[384904918,1757623862317,-546.82993872,0.00014547,2]
[384904919,1757623862327,-480.0,0.00014549,2]
[384904920,1757623862336,-3001.01,0.00014819,2]
[384904921,1757623862346,-191.02938076,0.00014819,2]
[384904922,1757623862355,-480.0,0.00014821,2]
[384904923,1757623862364,-480.0,0.00014821,2]
[384904924,1757623862374,-185.47953218,0.00014823,2]
[384904925,1757623862383,-3001.01,0.00015093,2]
[384904926,1757623862393,-3001.01,0.00015367,2]
[384904927,1757623862403,-3001.01,0.00015641,2]
[384904928,1757623862412,-3001.01,0.00015915,2]
[384904929,1757623862421,-3001.01,0.00016189,2]
[384904930,1757623862431,-3001.01,0.00016463,2]
[384904931,1757623862441,-3001.01,0.00016737,2]
[384904932,1757623862451,-3001.01,0.00017011,2]
[384904933,1757623862460,-280.96,0.00017186,2]
[384904934,1757623862470,-3001.01,0.00017285,2]
[384904935,1757623862480,-3001.01,0.00017559,2]
[384904936,1757623862490,-3001.01,0.00017833,2]
[384904937,1757623862500,-3001.01,0.00018107,2]
[384904938,1757623862510,-3001.01,0.00018381,2]
[384904939,1757623862519,-3001.01,0.00018655,2]
[384904940,1757623862529,-3001.01,0.00018929,2]
[384904941,1757623862538,-3001.01,0.00019203,2]
[384904942,1757623862548,-3001.01,0.00019477,2]
[384904943,1757623862557,-3001.01,0.00019751,2]
[384904944,1757623862566,-3001.23649946,0.00020025,2]
[384904945,1757623862575,-12287.9057845,0.000215,2]
[384904946,1757623862584,-264.39640151,0.000216,2]
[384904947,1757623862593,-166.0,0.000216,2]
[384904948,1757623862604,-166.0,0.000216,2]
[384904949,1757623862616,-172.0,0.000216,2]
[384904950,1757623862625,-166.0,0.000216,2]
[384904951,1757623862635,-1305.0,0.000216,2]
[384904952,1757623862644,-1305.0,0.000216,2]
[384904953,1757623862653,-1305.0,0.000216,2]
[384904954,1757623862664,-1305.0,0.000216,2]
[384904955,1757623862673,-1305.0,0.000216,2]
[384904956,1757623862682,-1305.0,0.000216,2]
[384904957,1757623862691,-1305.0,0.000216,2]
[384904958,1757623862701,-1305.0,0.000216,2]
[384904959,1757623862710,-1305.0,0.000216,2]
[384904960,1757623862719,-1305.0,0.000216,2]
[384904961,1757623862728,-1305.0,0.000216,2]
[384904962,1757623862739,-369.61472092,0.000216,2]
[384904963,1757623862748,-166.0,0.000216,2]
[384904964,1757623862757,-166.0,0.000216,2]
[384904965,1757623862766,-328.0,0.000216,2]
[384904966,1757623862775,-328.0,0.000216,2]
[384904967,1757623862784,-328.0,0.000216,2]
[384904968,1757623862793,-328.0,0.000216,2]
[384904969,1757623862803,-166.0,0.000216,2]
[384904970,1757623862812,-7872.72526871,0.0002161,2]
[384904971,1757623862822,-208.0,0.0002167,2]
[384904972,1757623862832,-133631.35010553,0.000218,2]
[384904973,1757623862842,-2300.0,0.00021808,2]
[384904974,1757623862852,-2000.0,0.000219,2]
[384904975,1757623862862,-606.4,0.000219,2]
[384904976,1757623862872,-506.63465649,0.00021917,2]
[384904977,1757623862881,-171.050862,0.00021918,2]
[384904978,1757623862890,-160.07264545,0.00021918,2]
[384904979,1757623862900,-240.03957608,0.00021918,2]
[384904980,1757623862910,-151.0,0.00021918,2]
[384904981,1757623862919,-151.0,0.00021918,2]
[384904982,1757623862929,-1613.0,0.00021944,2]
[384904983,1757623862939,-110320.5,0.00022,7]
[384904984,1757623862950,-4228.1,0.00022,7]
[384904985,1757623862959,-11605.77,0.00022,7]
[384904986,1757623862969,-1757.19,0.00022,7]
[384904987,1757623862979,-355.54824171,0.00022,2]
[384904988,1757623862988,-2590.77,0.00022,2]
[384904989,1757623862998,-168.37307981,0.00022,10]
[384904990,1757623863007,-555.1381787,0.00022,7]
[384904991,1757623863016,-10583.28703691,0.00022,7]
[384904992,1757623863025,-936.66,0.00022,2]
[384904993,1757623863036,-7872.72526871,0.00022037,2]
[384904994,1757623863045,-188.4352839,0.00022059,2]
[384904995,1757623863055,-188.4352839,0.00022059,2]
[384904996,1757623863064,-188.4352839,0.00022059,2]
[384904997,1757623863074,-376.7764081,0.00022059,2]
[384904998,1757623863083,-376.7764081,0.00022059,2]
[384904999,1757623863093,-188.4352839,0.00022059,2]
[384905000,1757623863102,-188.4352839,0.00022059,2]
[384905001,1757623863112,-188.4352839,0.00022059,2]
[384905002,1757623863190,-188.4352839,0.00022059,2]
[384905003,1757623863200,-188.4352839,0.00022059,2]
[384905004,1757623863209,-188.4352839,0.00022059,2]
[384905005,1757623863219,-188.4352839,0.00022059,2]
[384905006,1757623863228,-208.0,0.0002207,2]
[384905007,1757623863238,-7360.93458769,0.00022097,2]
[384905008,1757623863247,-1465.91873266,0.00022108,2]
[384905009,1757623863257,-1071.1,0.000222,2]
[384905010,1757623863266,-1071.099999,0.000222,2]
[384905011,1757623863276,-160.0,0.00022377,3]
[384905012,1757623863285,-208.0,0.0002246,2]
[384905013,1757623863295,-7872.72526871,0.00022464,2]
[384905014,1757623863304,-300.0,0.00022466,2]
[384905015,1757623863313,-1000.0,0.00022548,20]
[384905016,1757623863323,-492.0,0.00022548,20]
[384905017,1757623863332,-202.0,0.000226,5]
[384905018,1757623863342,-93882.79290684,0.000228,2]
[384905019,1757623863351,-936.66,0.00022808,2]
[384905020,1757623863361,-208.0,0.0002285,2]
[384905021,1757623863371,-188.4352839,0.00022881,2]
[384905022,1757623863381,-188.4352839,0.00022881,2]
[384905023,1757623863392,-188.4352839,0.00022881,2]
[384905024,1757623863403,-7872.72526871,0.00022892,2]
[384905025,1757623863415,-2000.0,0.000229,2]
[384905026,1757623863425,-2300.0,0.00022904,2]
[384905027,1757623863435,-1161.35544743,0.00023,5]
[384905028,1757623863444,-283.0,0.00023,7]
[384905029,1757623863453,-200.0,0.00023,7]
[384905030,1757623863462,-450.0,0.00023014,2]
[384905031,1757623863473,-163.59652094,0.00023123,2]
[384905032,1757623863482,-7360.93458769,0.00023141,2]
[384905033,1757623863492,-208.0,0.0002325,2]
[384905034,1757623863501,-600.0,0.0002328,5]
[384905035,1757623863511,-600.0,0.0002328,5]
[384905036,1757623863520,-600.0,0.0002328,5]
[384905037,1757623863529,-1097.74665523,0.0002328,5]
[384905038,1757623863539,-1115.75,0.00023287,2]
[384905039,1757623863549,-500.0,0.00023287,2]
[384905040,1757623863558,-151.0,0.00023288,7]
[384905041,1757623863568,-151.0,0.00023288,7]
[384905042,1757623863578,-151.0,0.00023288,7]
[384905043,1757623863588,-151.0,0.00023288,7]
[384905044,1757623863598,-151.0,0.00023288,7]
[384905045,1757623863613,-4228.1,0.000233,7]
[384905046,1757623863622,-7872.72526871,0.00023319,2]
[384905047,1757623863633,-110320.5,0.000234,7]
[384905048,1757623863643,-11605.77,0.000234,7]
[384905049,1757623863655,-1757.19,0.000234,7]
[384905050,1757623863664,-111714.55971309,0.0002344,2]
[384905051,1757623863678,-2179.54910721,0.0002344,2]
[384905052,1757623863731,520.1,0.00013723,2]
[384905053,1757623863796,480.0,0.00013723,2]
[384905054,1757623863809,-480.0,0.00013898,2]
[384905055,1757623863819,-480.0,0.00013997,2]
[384905056,1757623863828,-480.0,0.00014271,2]
[384905057,1757623863838,-151.0,0.00014271,2]
[384905058,1757623863849,-480.0,0.00014545,2]
[384905059,1757623863859,-474.69,0.00014819,2]
[384905060,1757623863868,-798.54959532,0.0002344,2]
[384905061,1757623863910,480.0,0.00013723,2]
[384905062,1757623868585,480.0,0.00013725,2]
[384905063,1757623868624,480.0,0.00013727,2]
[384905064,1757623868658,1132.75,0.00012205,2]
[384905065,1757623868683,787.38,0.00012205,2]
[384905066,1757623868764,480.0,0.00013723,2]
[384905067,1757623868799,480.0,0.00013723,2]
[384905068,1757623868880,480.0,0.00013723,2]
[384905069,1757623868926,480.0,0.00013725,2]
[384905070,1757623868963,205.50161992,0.00013723,2]
[384905071,1757623869150,480.0,0.00013723,2]
[384905072,1757623869199,480.0,0.00013723,2]
[384905073,1757623869328,666.0,0.00013043,2]
[384905074,1757623869369,480.0,0.00013723,2]
[384905075,1757623869410,480.0,0.00013723,2]
[384905076,1757623869485,480.0,0.00013723,2]
[384905077,1757623869534,480.0,0.00013723,2]
[384905078,1757623869575,480.0,0.00013724,2]
[384905079,1757623869669,480.0,0.00013723,2]
[384905080,1757623869765,407.05048966,0.00013723,2]
[384905081,1757623869810,1920.13,0.00012083,2]
[384905082,1757623869856,482.72680183,0.00013723,2]
[384905083,1757623869919,480.0,0.00013723,2]
[384905084,1757623870047,480.0,0.00013725,2]
[384905085,1757623870155,480.0,0.00013727,2]
[384905086,1757623870186,480.0,0.00013723,2]
[384905087,1757623870218,480.0,0.00013725,2]
[384905088,1757623870283,480.0,0.00013723,2]
[384905089,1757623870321,480.0,0.00013723,2]
[384905090,1757623870404,480.0,0.00013723,2]
[384905091,1757623870453,480.0,0.00013723,2]
[384905092,1757623870491,480.2785542,0.00013723,2]
[384905093,1757623870539,480.0,0.00013725,2]
[384905094,1757623870570,480.0,0.00013723,2]
[384905095,1757623870717,480.0,0.00013723,2]
[384905096,1757623870769,506.2,0.00013725,2]
[384905097,1757623870836,480.0,0.00013723,2]
[384905098,1757623870871,480.0,0.00013723,2]
[384905099,1757623870939,1920.13,0.00011962,2]
[384905100,1757623870982,480.0,0.00013723,2]
[384905101,1757623871012,175.74362836,0.00013725,2]
[384905102,1757623871103,480.0,0.00013723,2]
[384905103,1757623871230,480.0,0.00013723,2]
[384905104,1757623871303,480.0,0.00013723,2]
[384905105,1757623871581,480.0,0.00013723,2]
[384905106,1757623871633,197.65781744,0.00013723,2]
[384905107,1757623871659,282.34218256,0.00013723,2]
[384905108,1757623871744,480.0,0.00013723,2]
[384905109,1757623871777,480.0,0.00013723,2]
[384905110,1757623871850,480.0,0.00013725,2]
[384905111,1757623871892,480.0,0.00013725,2]
[384905112,1757623871958,480.0,0.00013723,2]
[384905113,1757623872096,480.0,0.00013725,2]
[384905114,1757623873780,1920.13,0.00011842,2]
[384905115,1757623874074,480.0,0.00013723,2]
[384905116,1757623876213,480.0,0.00013724,2]
[384905117,1757623877850,480.0,0.00013725,2]
[384905118,1757623878686,480.0,0.00013723,2]
[384905120,1757623880436,480.0,0.00013725,2]
[384905121,1757623880935,480.0,0.00013723,2]
[384905122,1757623882661,480.63846267,0.00013725,2]
[384905123,1757623888137,480.0,0.00013723,2]
[384905124,1757623889824,3360.0,0.00013621,2]
[384905125,1757623890308,480.0,0.00013723,2]
[384905126,1757623893341,480.0,0.00013723,2]
[384905127,1757623895926,951.32,0.00013723,2]
[384905128,1757623896765,485.00095298,0.00013725,2]
[384905129,1757623897592,3360.0,0.00013621,2]
[384905130,1757623898774,611.8564088,0.00013723,2]
[384905131,1757623899201,271.83263822,0.00013723,2]
[384905132,1757623899226,208.16736178,0.00013723,2]
[384905133,1757623899504,154.259126,0.00024,30]
[384905134,1757623901166,480.0,0.00013725,2]
[384905135,1757623901331,480.0,0.00013723,2]
[384905136,1757623902974,480.0,0.00013725,2]
[384905137,1757623903088,480.0,0.00013723,2]
[384905138,1757623906020,481.56366157,0.00013723,2]
[384905139,1757623906938,480.0,0.00013723,2]
[384905140,1757623908974,480.0,0.00013725,2]
[384905141,1757623909073,480.0,0.00013725,2]
[384905142,1757623909592,191.28855677,0.00013723,2]
[384905143,1757623910307,480.0,0.00013723,2]
[384905144,1757623910381,480.0,0.00013723,2]
[384905145,1757623912434,480.0,0.00013723,2]
[384905146,1757623912879,480.0,0.00013723,2]
[384905147,1757623914344,3360.0,0.00013621,2]
[384905148,1757623914400,480.0,0.00013723,2]
[384905149,1757623915424,480.0,0.00013723,2]
[384905150,1757623915513,480.0,0.00013724,2]
[384905151,1757623915572,480.0,0.00013723,2]
[384905152,1757623915630,480.0,0.00013723,2]
[384905153,1757623916696,480.0,0.00013725,2]
[384905154,1757623920057,480.0,0.00013723,2]
[384905155,1757623920366,480.0,0.00013723,2]
[384905156,1757623920398,480.0,0.00013723,2]
[384905157,1757623923324,3360.0,0.00013621,2]
[384905158,1757623923646,480.0,0.00013725,2]
[384905159,1757623924380,480.0,0.00013723,2]
[384905160,1757623927721,480.0,0.00013723,2]
[384905161,1757623927929,480.0,0.00013725,2]
[384905162,1757623928898,480.0,0.00013725,2]
[384905163,1757623929864,480.0,0.00013725,2]
[384905164,1757623931008,480.0,0.00013723,2]
[384905165,1757623931073,480.0,0.00013723,2]
[384905166,1757623933242,480.0,0.00013723,2]
[384905167,1757623934420,480.0,0.00013723,2]
[384905168,1757623934453,480.0,0.00013725,2]
[384905169,1757623935583,480.0,0.00013723,2]
[384905170,1757623936015,480.0,0.00013723,2]
[384905171,1757623936431,389.12181762,0.00013723,2]
[384905172,1757623936644,480.0,0.00013723,2]
[384905173,1757623937684,480.0,0.00013723,2]
[384905174,1757623938995,480.0,0.00013725,2]
[384905175,1757623939536,480.0,0.00013723,2]
[384905176,1757623939893,3360.0,0.00013621,2]
[384905177,1757623940285,480.0,0.00013723,2]
[384905178,1757623940327,480.0,0.00013723,2]
[384905179,1757623942521,480.90646828,0.00013723,2]
[384905180,1757623942554,480.0,0.00013723,2]
[384905181,1757623943479,480.0,0.00013723,2]
[384905182,1757623944293,480.0,0.00013725,2]
[384905183,1757623946769,480.0,0.00013723,2]
[384905184,1757623948468,480.0,0.00013725,2]
[384905185,1757623948867,3360.0,0.00013621,2]
[384905186,1757623952068,480.0,0.00013725,2]
[384905187,1757623953194,480.0,0.00013723,2]
[384905188,1757623953236,480.0,0.00013725,2]
[384905189,1757623955872,1304.4320462,0.00013699,2]
[384905190,1757623955974,480.0,0.00013723,2]
[384905191,1757623961350,480.0,0.00013723,2]
[384905192,1757623962981,480.0,0.00013723,2]
[384905193,1757623964831,480.0,0.00013725,2]
[384905194,1757623964895,3360.0,0.00013621,2]
[384905195,1757623965181,480.0,0.00013723,2]
[384905196,1757623965672,480.0,0.00013725,2]
[384905197,1757623967249,480.0,0.00013723,2]
[384905198,1757623967487,480.0,0.00013723,2]
[384905199,1757623967578,480.0,0.00013725,2]
[384905200,1757623970983,-480.0,0.00013723,2]
[384905201,1757623971015,-448.32800474,0.00013723,2]
[384905202,1757623971044,-480.0,0.00013725,2]
[384905203,1757623972016,480.0,0.00013723,2]
[384905204,1757623973124,480.0,0.00013725,2]
[384905205,1757623973272,3360.0,0.00013621,2]
[384905206,1757623974154,480.0,0.00013725,2]
[384905207,1757623975728,480.0,0.00013723,2]
[384905208,1757623976382,480.0,0.00013723,2]
[384905209,1757623978990,209.4711557,0.00012861,2]
[384905210,1757623979774,480.0,0.00013723,2]
[384905211,1757623983451,-328.09326813,0.00013723,2]
[384905212,1757623983771,480.0,0.00013723,2]
[384905213,1757623984698,480.97425405,0.00013723,2]
[384905214,1757623985958,480.0,0.00013723,2]
[384905215,1757623987699,193.94,0.00013723,2]
[384905216,1757623988903,3360.0,0.00013621,2]
[384905217,1757623989887,480.0,0.00013723,2]
[384905218,1757623990681,480.0,0.00013723,2]
[384905219,1757623991525,480.0,0.00013723,2]
[384905220,1757623992480,157.0,7.8e-07,2]
[384905221,1757623993502,157.0,7.8e-07,2]
[384905224,1757623994583,157.0,7.8e-07,2]
[384905225,1757623994624,480.0,0.00013723,2]
[384905226,1757623995713,157.0,7.8e-07,2]
[384905228,1757623996751,157.0,7.8e-07,2]
[384905230,1757623997775,157.0,7.8e-07,2]
[384905231,1757623998357,480.0,0.00013586,2]
[384905232,1757623998474,617.036256,0.00013699,2]
[384905234,1757624001425,480.0,0.00013723,2]
[384905235,1757624002718,616.56,0.00013723,2]
[384905237,1757624008143,480.0,0.00013725,2]
[384905238,1757624010081,480.0,0.00013723,2]
[384905239,1757624014458,3360.0,0.00013621,2]
[384905240,1757624014757,480.0,0.00013723,2]
[384905241,1757624015021,480.0,0.00013723,2]
[384905242,1757624015263,480.0,0.00013723,2]
[384905243,1757624015397,481.22980627,0.00013725,2]
[384905244,1757624016916,480.0,0.00013723,2]
[384905245,1757624017436,480.0,0.00013723,2]
[384905246,1757624020252,480.0,0.00013725,2]
[384905247,1757624021533,480.0,0.00013723,2]
[384905248,1757624022849,3360.0,0.00013621,2]
[384905249,1757624023633,480.0,0.00013725,2]
[384905250,1757624025575,156.58006877,0.00013723,2]
[384905251,1757624025841,480.0,0.00013723,2]
[384905252,1757624027746,480.0,0.00013723,2]
[384905253,1757624033606,480.0,0.00013723,2]
[384905254,1757624033756,480.0,0.00013723,2]
[384905255,1757624035954,480.0,0.00013723,2]
[384905256,1757624037500,387.40229641,0.00013723,2]
[384905257,1757624037595,480.0,0.00013723,2]
[384905258,1757624038214,480.0,0.00013723,2]
[384905259,1757624039461,3360.0,0.00013621,2]
[384905260,1757624040160,732.06,0.00013723,2]
[384905261,1757624040512,480.0,0.00013723,2]
[384905262,1757624041433,480.0,0.00013723,2]
[384905263,1757624042358,480.0,0.00013723,2]
[384905264,1757624042574,480.0,0.00013725,2]
[384905265,1757624047373,480.0,0.00013723,2]
[384905266,1757624048541,3360.0,0.00013621,2]
[384905267,1757624052069,274.02,0.00012329,2]
[384905268,1757624052252,480.0,0.00013723,2]
[384905269,1757624057735,483.53022449,0.00013723,2]
[384905270,1757624058336,463.27514914,0.00013723,2]
[384905271,1757624058899,480.0,0.00013723,2]
[384905272,1757624059142,480.0,0.00013723,2]
[384905273,1757624061216,480.0,0.00013723,2]
[384905274,1757624062516,1823.72,0.00012329,2]
[384905275,1757624064796,3360.0,0.00013621,2]
[384905276,1757624065327,1000.0,0.00012861,2]
[384905277,1757624072152,480.0,0.00013723,2]
[384905278,1757624072549,480.0,0.00013723,2]
[384905279,1757624072767,480.0,0.00013723,2]
[384905280,1757624073050,473.01485086,0.00012329,2]
[384905281,1757624073079,1331.93514914,0.00012329,2]
[384905282,1757624073565,480.0,0.00013725,2]
[384905283,1757624073842,3360.0,0.00013621,2]
[384905284,1757624082128,480.0,0.00013723,2]
[384905285,1757624082745,1069.31518136,0.0001366,2]
[384905286,1757624083528,1504.12,0.00012329,2]
[384905287,1757624085915,480.0,0.00013723,2]
[384905288,1757624091697,1069.31518136,0.0001366,2]
[384905289,1757624092629,225.32448814,0.00013723,2]
[384905290,1757624092652,254.67551186,0.00013723,2]
[384905291,1757624093938,1253.44,0.00012329,2]
[384905292,1757624095323,480.0,0.00013723,2]
[384905293,1757624096492,480.0,0.00013723,2]
[384905294,1757624100145,1069.31518136,0.0001366,2]
[384905295,1757624102783,480.0,0.00013723,2]
[384905296,1757624102935,480.0,0.00013723,2]
[384905297,1757624104138,480.0,0.00013723,2]
[384905298,1757624104399,1044.53,0.00012329,2]
[384905299,1757624105947,480.0,0.00013725,2]
[384905300,1757624106477,480.0,0.00013723,2]
[384905301,1757624108525,1069.31518136,0.0001366,2]
[384905302,1757624108920,480.0,0.00013723,2]
[384905303,1757624110298,480.0,0.00013723,2]
[384905304,1757624111053,485.38515749,0.00013723,2]
[384905305,1757624111126,480.0,0.00013723,2]
[384905306,1757624113009,23.34896793,0.00013723,2]